bitfinex-derivatives/quotes_BNBF0:USTF0_20250303
["timestamp","ask_amount","ask_price","bid_price","bid_amount"]
[1741032309460,0.34734282,575.8,574.59,0.28596904]
[1741032309661,0.34734282,575.8,574.6,0.28596904]
[1741032309867,0.34734282,575.8,574.61,0.28596904]
[1741032310064,0.34734282,575.8,574.53,0.28596904]
[1741032310365,0.34734282,575.8,574.54,0.28596904]
[1741032310556,0.34734282,575.8,574.55,0.28596904]
[1741032310758,0.34734282,575.8,574.56,0.28596904]
[1741032310964,0.34734282,575.8,574.57,0.28596904]
[1741032311258,0.34734282,575.8,574.58,0.28596904]
[1741032311461,0.34734282,575.8,574.59,0.28596904]
[1741032311664,0.34734282,575.8,574.6,0.28596904]
[1741032311864,0.34734282,575.8,574.61,0.28596904]
[1741032312065,1.8134445,576.63,574.62,0.28596904]
[1741032312458,1.8134445,576.63,574.52,1.287]
[1741032312662,1.8134445,576.63,574.53,0.28571968]
[1741032312865,1.8134445,576.63,574.54,0.28571968]
[1741032313060,0.34685489,576.61,574.55,0.28571968]
[1741032313258,0.34685489,576.61,574.56,0.28571968]
[1741032313457,0.34685489,576.61,574.57,0.28571968]
[1741032313761,0.31915773,576.6,574.58,0.28571968]
[1741032314066,0.31915773,576.6,574.59,0.28571968]
[1741032314360,0.31915773,576.6,574.52,1.287]
[1741032314361,0.34685489,576.61,574.6,0.28571968]
[1741032314568,0.34685489,576.61,574.55,1.28530362]
[1741032314757,0.34685489,576.61,574.56,0.285905]
[1741032314964,0.34685489,576.61,574.57,0.285905]
[1741032315161,0.31920141,576.6,574.58,0.285905]
[1741032315567,0.31920141,576.59,574.59,0.285905]
[1741032315760,0.31920141,576.59,574.6,0.285905]
[1741032315962,0.34685489,576.61,574.53,0.285905]
[1741032316166,0.34685489,576.61,574.54,0.285905]
[1741032316468,0.31924047,576.6,574.55,0.285905]
[1741032316669,0.31924047,576.6,574.52,1.287]
[1741032316670,0.31924047,576.6,574.56,0.285905]
[1741032316871,0.31924047,576.6,574.57,0.285905]
[1741032317065,0.31924047,576.6,574.58,0.285905]
[1741032317261,0.31924047,576.6,574.59,0.285905]
[1741032317462,0.31924047,576.6,574.6,0.285905]
[1741032317662,0.31924047,576.6,574.61,0.285905]
[1741032317862,0.31924047,576.59,574.62,0.285905]
[1741032318060,0.31924047,576.58,574.63,0.285905]
[1741032318263,0.31924047,576.57,574.64,0.285905]
[1741032318471,0.31924047,576.6,574.62,0.285905]
[1741032318663,0.34685489,576.61,574.61,0.961]
[1741032318869,0.31936686,576.59,574.63,1.116]
[1741032319067,0.31936686,576.58,574.64,0.28608754]
[1741032319264,0.31936686,576.57,574.64,0.28608754]
[1741032319471,0.31936686,576.6,574.65,0.28608754]
[1741032319777,0.31936686,576.59,574.66,0.28608754]
[1741032319970,0.31936686,576.6,574.64,0.28608754]
[1741032320265,0.31935122,576.59,574.65,0.28607092]
[1741032320464,0.31935122,576.58,574.66,0.28607092]
[1741032320674,8.08760585,576.6,574.64,0.28607092]
[1741032320864,1.69316411,576.51,574.65,0.28607092]
[1741032321071,1.01508234,576.45,574.65,0.945]
[1741032321272,3.3238775,576.47,574.66,0.28607092]
[1741032321273,1.69316411,576.4,574.66,0.28607092]
[1741032321565,1.69316411,576.3,574.66,0.28607092]
[1741032321769,1.69316411,576.25,574.65,0.945]
[1741032321964,3.3238775,576.19,574.65,0.945]
[1741032322169,1.69316411,576.16,574.65,0.945]
[1741032322466,1.69316411,576.13,574.65,0.945]
[1741032322674,1.69316411,576.11,574.65,0.945]
[1741032322865,1.69316411,576.06,574.65,0.945]
[1741032323071,1.69316411,576.02,574.65,0.945]
[1741032323271,1.69316411,575.94,574.65,0.945]
[1741032323569,1.69316411,575.8,574.65,0.945]
[1741032323770,0.31935122,575.79,574.65,0.945]
[1741032324069,0.31935122,575.78,574.65,0.945]
[1741032324272,1.63071339,575.81,574.65,0.945]
[1741032324466,0.31935122,575.8,574.65,0.945]
[1741032325275,3.43326792,575.85,574.66,0.28626744]
[1741032325571,1.81517865,575.79,574.66,0.28626744]
[1741032325773,3.43326792,575.85,574.66,0.28626744]
[1741032325968,1.63071339,576.35,574.66,0.28626744]
[1741032326168,1.81487888,575.99,574.66,0.28626744]
[1741032326364,1.73831523,576.34,574.66,0.28626744]
[1741032326568,1.81478423,575.98,574.66,0.28626744]
[1741032326966,5.56764001,576.5,574.66,0.28626744]
[1741032327169,1.81469749,576.0,574.66,0.28626744]
[1741032327366,7.76698863,576.48,574.66,0.28626744]
[1741032327572,8.08639202,576.47,574.66,0.28626744]
[1741032327768,1.81484733,575.99,574.66,0.28626744]
[1741032327968,7.76698863,576.45,574.66,0.28626744]
[1741032328277,1.81498142,575.98,574.66,0.28626744]
[1741032328473,0.31943475,575.97,574.66,0.28626744]
[1741032328772,0.31943475,575.96,574.66,0.28626744]
[1741032329671,1.81525755,575.97,574.66,0.28626744]
[1741032329869,0.3194736,575.96,574.66,0.28626744]
[1741032330070,1.81525755,575.97,574.65,0.945]
[1741032330374,1.81525755,575.97,574.66,0.28617674]
[1741032330375,0.3194721,575.96,574.66,0.28617674]
[1741032330575,1.81525755,575.97,574.67,0.34802582]
[1741032330875,1.81525755,575.97,574.68,0.28617674]
[1741032331274,2.78962514,576.38,574.68,0.28617674]
[1741032331475,0.31944647,576.37,574.68,0.28617674]
[1741032331671,5.89057311,576.37,574.68,0.28617674]
[1741032331874,4.79097034,576.36,574.68,0.28617674]
[1741032332071,0.31944647,576.35,574.68,1.04717674]
[1741032332275,3.43326792,576.35,574.69,0.28617674]
[1741032332476,0.31944647,576.34,574.7,0.28617674]
[1741032332689,0.31944647,576.34,574.71,0.28617674]
[1741032332978,0.31944647,576.34,574.72,0.28617674]
[1741032333278,0.31938182,576.33,574.73,0.28610147]
[1741032333477,0.31938182,576.36,574.68,0.761]
[1741032333670,1.81452401,576.37,574.68,0.761]
[1741032333876,0.31951672,576.36,574.68,0.761]
[1741032334279,1.63071339,576.52,574.68,0.761]
[1741032334280,1.01381815,576.24,574.69,0.2862447]
[1741032334472,1.63071339,576.19,574.69,0.2862447]
[1741032334777,0.31951672,576.18,574.69,0.2862447]
[1741032334973,0.31951672,576.17,574.69,0.2862447]
[1741032335181,0.31951672,576.26,574.69,0.2862447]
[1741032335380,0.31951672,576.25,574.69,0.2862447]
[1741032335976,1.01381815,576.2,574.68,0.761]
[1741032336178,1.63071339,576.22,574.7,0.28633705]
[1741032336179,1.01381815,576.18,574.7,0.28633705]
[1741032336374,7.77568631,576.21,574.68,0.761]
[1741032336579,8.09526137,576.2,574.69,0.28629118]
[1741032336776,8.09526137,576.19,574.69,0.28629118]
[1741032336980,8.09526137,576.18,574.68,0.761]
[1741032337283,4.78131975,576.17,574.7,1.001]
[1741032337478,4.78131975,576.16,574.71,0.28631995]
[1741032337676,3.43326792,576.17,574.71,0.28631995]
[1741032337677,3.10635214,576.15,574.71,0.28631995]
[1741032337878,3.10635214,576.14,574.71,0.28631995]
[1741032338075,3.10635214,576.13,574.71,0.28631995]
[1741032338277,3.10635214,576.12,574.71,0.28631995]
[1741032338483,3.10635214,576.11,574.71,0.28631995]
[1741032338676,3.10635214,576.1,574.71,0.28631995]
[1741032338878,3.10635214,576.09,574.71,0.28631995]
[1741032339081,0.31957506,576.08,574.71,0.28631995]
[1741032339777,0.31957506,576.07,574.71,0.28631995]
[1741032339983,0.31957506,576.1,574.71,0.28631995]
[1741032340282,0.31957506,576.09,574.71,0.28631995]
[1741032340480,0.34718003,576.07,574.72,0.998]
[1741032340678,0.31957506,576.06,574.73,0.28631995]
[1741032340876,1.33299457,576.05,574.73,0.28631995]
[1741032341076,1.68897122,576.01,574.72,0.998]
[1741032341278,0.31964688,576.0,574.72,0.998]
[1741032341884,4.83966165,576.0,574.72,0.998]
[1741032342191,1.68897122,575.96,574.72,0.998]
[1741032342484,0.31964688,575.95,574.72,0.998]
[1741032342685,1.33269782,575.94,574.72,0.998]
[1741032342882,1.68897122,575.91,574.72,0.998]
[1741032343083,1.01294929,576.02,574.72,0.998]
[1741032343084,0.31974853,575.9,574.72,0.998]
[1741032343287,0.31974853,575.89,574.72,0.998]
[1741032343483,3.43234328,575.95,574.72,0.998]
[1741032343694,3.10825346,575.94,574.72,0.998]
[1741032343989,1.69016681,576.1,574.72,0.998]
[1741032344184,4.41536883,576.1,574.72,0.998]
[1741032344384,0.31957063,576.06,574.73,0.28628766]
[1741032346290,0.34719811,576.04,574.73,0.28628766]
[1741032346491,0.31957063,576.03,574.74,1.394]
[1741032347489,8.08641804,576.03,574.75,0.28631673]
[1741032347683,4.78145662,576.02,574.75,0.28631673]
[1741032347895,2.05911337,576.01,574.75,0.28631673]
[1741032348085,0.31957063,576.0,574.75,0.28631673]
[1741032348686,0.31957063,576.03,574.75,0.28631673]
[1741032348886,0.31957063,575.99,574.75,0.28631673]
[1741032349093,0.31957063,576.02,574.74,1.394]
[1741032349287,0.34719811,576.04,574.74,1.394]
[1741032349891,0.31968427,576.03,574.74,1.394]
[1741032350087,1.0123446,575.88,574.74,1.394]
[1741032350288,1.0123446,575.81,574.74,1.394]
[1741032350494,1.0123446,575.73,574.74,1.394]
[1741032350789,1.0123446,575.6,574.74,1.394]
[1741032350991,1.69016681,575.69,574.74,1.394]
[1741032350992,0.31968427,575.59,574.74,1.394]
[1741032351192,0.31968427,575.58,574.74,1.394]
[1741032351494,0.66716589,575.57,574.75,1.112]
[1741032351690,0.31968427,575.56,574.75,1.112]
[1741032352193,0.31968427,575.55,574.75,1.112]
[1741032352392,0.31968427,575.54,574.75,1.112]
[1741032352693,0.31968427,575.53,574.75,1.112]
[1741032352992,0.31968427,575.52,574.75,1.112]
[1741032353193,0.31968427,575.51,574.75,1.112]
[1741032353403,0.31968427,575.5,574.75,1.112]
[1741032353688,0.31968427,575.49,574.75,1.112]
[1741032353893,0.31968427,575.48,574.76,1.535]
[1741032354093,0.31968427,575.47,574.76,1.535]
[1741032354389,1.00604209,575.01,574.76,1.535]
[1741032354594,1.67671999,574.97,574.76,1.535]
[1741032354795,0.31968427,574.96,574.76,1.535]
[1741032354994,1.32572636,574.96,574.76,1.535]
[1741032355289,1.67671999,574.89,574.76,1.535]
[1741032355594,0.31968427,574.88,574.76,1.535]
[1741032355800,1.99640426,574.87,574.76,1.535]
[1741032356096,1.67671999,574.81,574.76,0.22764304]
[1741032356393,0.31968427,574.8,574.76,0.22764304]
[1741032357191,0.31968427,574.79,574.76,0.22764304]
[1741032357489,0.31968427,574.78,574.76,0.22764304]
[1741032357695,0.31968427,574.77,574.75,1.112]
[1741032357894,0.31968427,574.76,574.75,1.112]
[1741032358493,7.55560344,574.81,574.75,1.112]
[1741032358689,8.07861529,574.8,574.75,1.112]
[1741032358891,8.07861529,574.79,574.75,0.79163606]
[1741032359195,8.07861529,574.78,574.75,0.79163606]
[1741032359395,8.07861529,574.77,574.75,0.79163606]
[1741032359689,3.10321526,574.76,574.75,0.79163606]
[1741032359889,3.72341351,574.76,574.75,0.79163606]
[1741032360088,3.09366801,574.76,574.75,0.79163606]
[1741032360289,0.31968427,574.76,574.75,0.79163606]
[1741032360594,0.31968427,574.76,574.49,1.078]
[1741032360788,0.31968427,574.88,574.49,1.078]
[1741032360994,0.31968427,574.75,574.49,1.078]
[1741032361196,0.31968427,574.74,574.49,1.078]
[1741032361391,8.05493471,574.87,574.49,1.078]
[1741032361594,1.81835599,574.73,574.49,1.078]
[1741032361791,0.31968427,574.72,574.49,1.078]
[1741032361988,1.81864899,574.72,574.49,1.078]
[1741032362193,0.31968427,574.71,574.49,1.078]
[1741032363992,9.55187626,574.72,574.49,1.078]
[1741032364194,8.05373072,574.71,574.49,1.078]
[1741032364396,7.73322727,574.7,574.49,1.078]
[1741032364593,7.73322727,574.69,574.49,1.078]
[1741032364799,8.05374434,574.68,574.49,1.078]
[1741032364994,8.05374434,574.67,574.49,1.078]
[1741032365293,1.00004029,574.61,574.49,1.078]
[1741032365493,1.00004029,574.55,574.49,1.078]
[1741032365693,1.00004029,574.5,574.38,1.118]
[1741032365898,1.00004029,574.48,574.38,1.118]
[1741032366195,0.32064997,574.47,574.38,1.118]
[1741032366395,0.32064997,574.54,574.38,1.118]
[1741032366601,0.32064997,574.57,574.38,1.118]
[1741032366895,0.32064997,574.56,574.38,1.118]
[1741032367101,0.32064997,574.59,574.38,1.118]
[1741032367296,0.32064997,574.58,574.38,1.118]
[1741032367502,4.99421171,574.6,574.38,1.118]
[1741032367701,1.81854603,574.58,574.38,1.118]
[1741032368408,0.32038876,574.57,574.38,1.118]
[1741032369404,0.32038876,574.56,574.38,1.118]
[1741032369599,0.32038876,574.55,574.38,1.118]
[1741032369802,0.32038876,574.54,574.38,1.118]
[1741032369998,0.32038876,574.53,574.38,1.118]
[1741032370199,0.32038876,574.52,574.38,1.118]
[1741032370404,0.32038876,574.51,574.38,1.118]
[1741032370603,0.32038876,574.5,574.38,1.118]
[1741032370799,0.32038876,574.49,574.38,1.118]
[1741032371002,0.32038876,574.56,574.38,1.118]
[1741032371202,0.32038876,574.55,574.38,1.118]
[1741032371905,0.32038876,574.56,574.38,1.118]
[1741032372099,0.32038876,574.55,574.38,1.118]
[1741032372300,0.32038876,574.56,574.38,1.118]
[1741032372702,3.33213273,574.57,574.38,1.118]
[1741032373098,1.81854603,574.58,574.38,1.118]
[1741032374103,0.32031155,574.57,574.38,1.118]
[1741032374307,1.81854603,574.58,574.38,1.118]
[1741032374508,0.34808639,574.57,574.38,1.118]
[1741032375916,0.34808639,574.57,574.11,0.915]
[1741032376904,0.34808639,574.57,574.22,0.30194367]
[1741032377102,0.34808639,574.57,574.11,0.915]
[1741032377708,0.34808639,574.57,574.22,0.30186408]
[1741032378507,3.31742347,575.77,574.22,0.30186408]
[1741032378707,3.31742347,575.77,574.11,0.915]
[1741032378903,1.81697936,575.42,574.22,0.30178696]
[1741032380211,1.81697936,575.42,574.11,0.915]
[1741032380704,1.81697936,575.42,574.22,0.30196496]
[1741032382109,2.32639192,575.92,574.23,0.865]
[1741032382305,1.02651846,575.92,574.24,0.30196496]
[1741032382511,1.81677383,575.51,574.25,0.30196496]
[1741032382709,1.02651846,575.99,574.26,0.30196496]
[1741032382910,1.66207898,576.1,574.27,0.30196496]
[1741032382911,1.81659997,575.66,574.27,0.30196496]
[1741032383208,1.81659997,575.66,574.28,0.30196496]
[1741032383410,1.81659997,575.66,574.29,0.30196496]
[1741032383604,1.81659997,575.66,574.3,0.30196496]
[1741032383806,1.81659997,575.66,574.23,0.865]
[1741032383807,1.81659997,575.66,574.31,0.30196496]
[1741032384005,3.31742347,576.07,574.23,0.865]
[1741032384006,3.31742347,576.07,574.32,0.30196496]
[1741032384208,1.81621283,575.86,574.32,0.30196496]
[1741032384410,1.81621283,575.86,574.33,0.30196496]
[1741032384610,1.81621283,575.86,574.24,0.30196496]
[1741032385513,8.71501917,576.02,574.24,0.30196496]
[1741032385704,1.81717702,575.25,574.24,0.30196496]
[1741032385908,8.38244526,576.0,574.25,0.30186527]
[1741032386120,1.8166869,575.62,574.24,0.30186527]
[1741032386314,1.8166869,575.62,574.23,0.865]
[1741032386615,1.8166869,575.62,574.24,0.30172313]
[1741032386815,1.8166869,575.62,574.25,0.30172313]
[1741032387121,1.28158951,575.97,574.26,0.30172313]
[1741032387321,1.81646563,575.73,574.27,0.30172313]
[1741032387522,1.81646563,575.73,574.28,0.30172313]
[1741032387717,4.41497906,576.16,574.29,0.30172313]
[1741032387921,1.66207898,576.23,574.23,0.865]
[1741032387922,1.81643403,575.71,574.3,0.30172313]
[1741032388121,1.81643403,575.71,574.24,0.30172313]
[1741032388323,4.41490782,576.13,574.25,0.30172313]
[1741032388522,1.81665528,575.57,574.24,0.30172313]
[1741032388718,1.81665528,575.57,574.25,0.30172313]
[1741032388925,1.81665528,575.57,574.24,0.30172313]
[1741032389118,1.81665528,575.57,574.25,0.30172313]
[1741032389317,1.81665528,575.57,574.24,0.30172313]
[1741032389520,1.81665528,575.57,574.25,0.30172313]
[1741032389720,0.9985798,576.23,574.23,0.865]
[1741032389721,7.73233129,576.06,574.24,0.30172313]
[1741032389919,1.81671061,575.54,574.24,0.30172313]
[1741032390924,1.02905769,576.01,574.24,0.30172313]
[1741032391119,1.81651304,575.73,574.25,0.30172313]
[1741032391322,1.81651304,575.73,574.24,0.30172313]
[1741032391518,1.81651304,575.73,574.25,0.30172313]
[1741032391723,1.81651304,575.73,574.26,0.30172313]
[1741032391917,1.81651304,575.73,574.27,0.30172313]
[1741032392118,1.81651304,575.73,574.28,0.30172313]
[1741032392424,1.81651304,575.73,574.29,0.30172313]
[1741032392625,1.81651304,575.73,574.3,0.30172313]
[1741032392917,1.81651304,575.73,574.3,0.893]
[1741032393124,1.81651304,575.73,574.31,0.30172313]
[1741032395422,1.81651304,575.73,574.32,0.30172313]
[1741032395720,1.81651304,575.73,574.33,0.30172313]
[1741032395927,1.81651304,575.73,574.31,0.30172313]
[1741032396122,1.81651304,575.73,574.32,0.30172313]
[1741032396323,1.81651304,575.73,574.31,0.30172313]
[1741032396526,1.81651304,575.73,574.32,0.30172313]
[1741032396728,1.81651304,575.73,574.33,0.30172313]
[1741032397026,1.81651304,575.73,574.34,1.30172313]
[1741032397226,1.81651304,575.73,574.35,0.30172313]
[1741032397727,1.81651304,575.73,574.34,1.0]
[1741032398719,0.99706156,575.61,574.34,1.0]
[1741032398919,0.99706156,575.54,574.34,1.0]
[1741032399124,0.99856137,575.5,574.34,1.0]
[1741032399417,0.99856137,575.49,574.34,1.0]
[1741032399722,1.02841378,575.49,574.34,1.882]
[1741032400518,0.99856137,575.46,574.34,1.882]
[1741032400725,1.8177861,574.82,574.34,1.882]
[1741032401326,4.41884922,575.44,574.34,1.882]
[1741032401521,1.66207898,575.49,574.34,1.882]
[1741032401522,1.81746964,575.0,574.34,1.882]
[1741032401828,3.31742347,575.43,574.34,1.882]
[1741032402224,1.81719284,575.19,574.35,0.3019179]
[1741032402425,1.81719284,575.19,574.34,1.882]
[1741032402630,3.31742347,575.43,574.34,3.05]
[1741032403133,1.81700308,575.44,574.34,3.05]
[1741032403534,1.81700308,575.44,574.35,0.30184468]
[1741032403735,3.31742347,575.77,574.35,0.30184468]
[1741032404035,1.81676593,575.47,574.35,0.30184468]
[1741032405134,1.81676593,575.47,574.36,0.30190481]
[1741032405533,1.81676593,575.47,574.37,0.30190481]
[1741032405736,1.81676593,575.47,574.34,3.05]
[1741032405737,1.81676593,575.47,574.35,0.30190481]
[1741032405931,1.81676593,575.47,574.34,3.05]
[1741032406331,7.7233456,575.66,574.34,3.05]
[1741032406532,1.81773071,574.85,574.34,3.05]
[1741032406929,0.99981544,575.62,574.34,3.05]
[1741032407130,1.817438,575.05,574.34,3.05]
[1741032407530,7.72428869,575.6,574.34,3.05]
[1741032407731,1.81718493,575.18,574.34,3.05]
[1741032407934,1.81718493,575.18,574.35,0.30190539]
[1741032408132,1.03198393,575.57,574.35,0.30190539]
[1741032408335,1.81713749,575.21,574.35,0.30190539]
[1741032408637,1.28158951,575.57,574.35,0.30190539]
[1741032408838,1.81701098,575.34,574.35,0.30190539]
[1741032409333,1.66207898,575.9,574.35,0.30190539]
[1741032409534,1.81674222,575.53,574.35,0.30190539]
[1741032409738,1.66207898,575.9,574.36,0.30190539]
[1741032409934,1.81616544,575.86,574.36,0.30190539]
[1741032410133,1.28158951,576.32,574.37,0.30190539]
[1741032410333,1.28158951,576.32,574.38,0.30190539]
[1741032410536,1.81607856,575.93,574.39,0.30190539]
[1741032410737,1.81607856,575.93,574.4,0.30190539]
[1741032410934,1.81607856,575.93,574.41,0.30190539]
[1741032411138,1.81607856,575.93,574.42,0.30190539]
[1741032411434,1.81607856,575.93,574.43,0.30190539]
[1741032411636,1.81607856,575.93,574.35,0.30190539]
[1741032411837,1.28158951,576.49,574.35,0.30190539]
[1741032411838,1.64999738,576.48,574.35,0.30190539]
[1741032412037,1.28158951,576.36,574.35,0.30190539]
[1741032412235,1.81577849,576.08,574.35,0.30190539]
[1741032412542,1.81577849,576.08,574.34,3.05]
[1741032412543,1.81577849,576.08,574.36,0.30190539]
[1741032412735,1.81577849,576.08,574.35,0.30190539]
[1741032413040,1.81577849,576.08,574.34,3.05]
[1741032413345,1.81577849,576.08,574.35,0.30158869]
[1741032413742,1.81577849,576.08,574.36,0.30158869]
[1741032413936,1.81577849,576.08,574.37,0.30158869]
[1741032414138,1.81577849,576.08,574.38,0.30158869]
[1741032414437,1.81577849,576.08,574.34,3.05]
[1741032414438,1.81577849,576.08,574.39,0.30144248]
[1741032414745,1.81577849,576.08,574.4,0.30144248]
[1741032414946,1.81577849,576.08,574.41,0.30144248]
[1741032415146,1.81577849,576.08,574.42,0.30144248]
[1741032415347,1.81577849,576.08,574.43,0.30144248]
[1741032415543,1.66207898,576.56,574.44,0.30144248]
[1741032415746,1.81556534,576.24,574.45,0.30144248]
[1741032415954,1.81556534,576.24,574.46,0.30144248]
[1741032416238,3.31742347,576.5,574.47,0.30144248]
[1741032416437,1.81555745,576.24,574.48,0.30144248]
[1741032416640,1.81555745,576.24,574.49,0.30144248]
[1741032416837,1.81555745,576.24,574.5,0.30144248]
[1741032417042,1.81555745,576.24,574.51,0.30144248]
[1741032417236,1.81555745,576.24,574.52,0.30144248]
[1741032417448,1.81555745,576.24,574.53,0.30144248]
[1741032417641,1.81555745,576.24,574.54,0.30144248]
[1741032417842,1.81555745,576.24,574.55,0.30144248]
[1741032418042,1.81555745,576.24,574.56,0.30144248]
[1741032418343,1.81555745,576.24,574.57,0.30144248]
[1741032418543,1.81555745,576.24,574.58,0.30144248]
[1741032418748,1.81555745,576.24,574.59,0.30144248]
[1741032418949,1.81555745,576.24,574.6,0.30144248]
[1741032419243,1.81555745,576.24,574.61,0.30144248]
[1741032419437,1.81555745,576.24,574.62,0.30144248]
[1741032419637,1.81555745,576.24,574.63,0.30144248]
[1741032419837,1.81555745,576.24,574.35,0.30144248]
[1741032420037,1.81555745,576.24,574.36,0.30144248]
[1741032420338,1.81555745,576.24,574.37,0.30144248]
[1741032420542,1.81555745,576.24,574.38,0.30144248]
[1741032420743,1.81555745,576.24,574.39,0.30144248]
[1741032421037,1.81555745,576.24,574.4,0.30144248]
[1741032421239,1.81555745,576.24,574.41,0.30144248]
[1741032421438,1.81555745,576.24,574.42,0.30144248]
[1741032421738,1.81555745,576.24,574.43,0.30144248]
[1741032421942,1.81555745,576.24,574.44,0.30144248]
[1741032422142,1.81555745,576.24,574.45,0.30144248]
[1741032422341,1.81555745,576.24,574.46,0.30144248]
[1741032422543,1.81555745,576.24,574.35,0.30144248]
[1741032422737,1.81555745,576.24,574.36,0.30144248]
[1741032422935,1.81555745,576.24,574.37,0.30144248]
[1741032423137,1.81555745,576.24,574.38,0.30144248]
[1741032423340,1.81555745,576.24,574.35,0.30144248]
[1741032423540,1.81555745,576.24,574.36,0.30144248]
[1741032423941,1.81555745,576.24,574.35,0.30144248]
[1741032424145,1.81555745,576.24,574.37,0.30144248]
[1741032424342,4.41274694,576.62,574.38,0.30144248]
[1741032424648,1.81611015,575.87,574.39,0.30144248]
[1741032424845,1.81611015,575.87,574.4,0.30144248]
[1741032425138,1.81611015,575.87,574.41,0.30144248]
[1741032425444,1.81611015,575.87,574.35,0.30144248]
[1741032425745,1.81611015,575.87,574.36,0.30144248]
[1741032425943,1.81611015,575.87,574.37,0.30144248]
[1741032426146,1.81611015,575.87,574.38,0.30144248]
[1741032426441,1.81611015,575.87,574.39,0.30144248]
[1741032426647,1.81611015,575.87,574.4,0.30144248]
[1741032427046,1.81611015,575.87,574.41,0.30144248]
[1741032427244,1.81611015,575.87,574.35,0.30144248]
[1741032427446,0.99885279,576.17,574.42,0.30144248]
[1741032427639,1.8168845,575.37,574.43,0.30144248]
[1741032427843,8.38406836,576.23,574.34,4.084]
[1741032427844,4.43073457,576.12,574.35,0.30144248]
[1741032428045,7.72037868,576.11,574.36,0.30144248]
[1741032428346,1.81680545,575.42,574.37,0.30144248]
[1741032428540,1.81680545,575.42,574.35,0.30144248]
[1741032428846,1.81680545,575.42,574.34,4.084]
[1741032429245,1.81680545,575.42,574.34,5.026]
[1741032429647,4.97950245,576.05,574.35,0.30186145]
[1741032429648,1.69326781,576.02,574.35,0.30186145]
[1741032429848,1.81676593,575.55,574.35,0.30186145]
[1741032430241,3.31742347,576.02,574.35,0.30186145]
[1741032430547,1.81648144,575.76,574.35,0.30186145]
[1741032430740,3.31742347,576.02,574.35,0.30186145]
[1741032430943,1.66207898,576.48,574.36,0.30153883]
[1741032431139,1.81609435,575.95,574.37,0.30153883]
[1741032431347,1.66207898,576.48,574.38,0.30153883]
[1741032431547,1.81581007,576.13,574.39,0.30153883]
[1741032431742,1.81581007,576.13,574.34,5.026]
[1741032431743,1.81581007,576.13,574.4,0.30153883]
[1741032432047,7.72736281,576.86,574.34,5.026]
[1741032432245,1.81587324,576.09,574.35,0.30144313]
[1741032432446,7.72616203,576.84,574.36,0.30144313]
[1741032432648,7.20472736,576.83,574.37,0.30144313]
[1741032432849,1.81569954,576.13,574.38,0.30144313]
[1741032433247,1.81569954,576.13,574.39,0.30144313]
[1741032433649,1.81569954,576.13,574.34,5.026]
[1741032433850,1.81569954,576.13,574.35,0.30151674]
[1741032434050,1.81569954,576.13,574.36,0.30151674]
[1741032434250,1.81569954,576.13,574.37,0.30151674]
[1741032434450,1.81569954,576.13,574.38,0.30151674]
[1741032434645,1.81569954,576.13,574.39,0.30151674]
[1741032434851,1.81569954,576.13,574.4,0.30151674]
[1741032435244,0.18919549,574.73,574.41,0.30151674]
[1741032435448,0.18919549,574.73,574.42,0.30151674]
[1741032435850,0.02317707,574.73,574.43,0.30151674]
[1741032436150,0.02317707,574.73,574.44,0.30151674]
[1741032436348,1.81465017,576.12,574.45,0.30151674]
[1741032436545,1.81465017,576.12,574.46,0.30151674]
[1741032436745,5.55817061,576.75,574.47,0.30151674]
[1741032437052,1.81446094,576.22,574.48,0.30151674]
[1741032437252,1.04000233,576.73,574.48,0.96568581]
[1741032437450,0.30277038,576.72,574.49,0.96568581]
[1741032437645,0.30277038,576.73,574.5,0.96568581]
[1741032437949,3.62019385,576.73,574.51,0.96568581]
[1741032438150,3.31742347,576.73,574.52,0.30151674]
[1741032438352,3.31742347,576.73,574.53,0.30151674]
[1741032438547,1.81373592,576.74,574.53,0.30151674]
[1741032438753,0.30209585,576.73,574.54,0.30151674]
[1741032438949,0.30209585,576.73,574.55,0.30151674]
[1741032439147,1.31172038,576.73,574.56,0.30151674]
[1741032439350,1.31172038,576.73,574.34,1.976]
[1741032439351,1.00962453,576.67,574.57,0.30151674]
[1741032439547,0.30209585,576.72,574.58,0.30151674]
[1741032439548,0.30209585,576.66,574.58,0.30151674]
[1741032439854,0.30209585,576.65,574.59,2.48451674]
[1741032440253,0.30209585,576.64,574.6,0.30151674]
[1741032440452,8.0511448,576.7,574.61,0.30151674]
[1741032440747,8.0511448,576.69,574.62,0.30151674]
[1741032440953,1.00962453,576.55,574.63,0.30151674]
[1741032441152,1.66207898,576.51,574.64,0.30151674]
[1741032441454,0.30209585,576.5,574.65,0.30151674]
[1741032441651,0.30209585,576.5,574.66,0.30151674]